fUST/lending_fUST_20250204
["ID","MTS","AMOUNT","RATE_DAILY","PERIOD"]
[351584234,1738647033527,-500.0,0.00016438,2]
[351584236,1738647033536,-500.0,0.00016438,2]
[351584238,1738647033545,-500.0,0.00016438,2]
[351584239,1738647033555,-500.0,0.00016438,2]
[351584241,1738647033565,-500.0,0.00016438,2]
[351584243,1738647033574,-500.0,0.00016438,2]
[351584245,1738647033583,-500.0,0.00016438,2]
[351584247,1738647033593,-500.0,0.00016438,2]
[351584249,1738647033603,-500.0,0.00016438,2]
[351584251,1738647033617,-500.0,0.00016438,2]
[351584253,1738647033627,-506.50061272,0.00016438,2]
[351584255,1738647033637,-500.0,0.00016438,2]
[351584257,1738647033647,-500.0,0.00016438,2]
[351584259,1738647033658,-501.80219771,0.00016438,2]
[351584261,1738647033672,-500.0,0.00016438,2]
[351584263,1738647033683,-912.25,0.00016438,2]
[351584265,1738647033694,-500.0,0.00016438,2]
[351584267,1738647033705,-500.0,0.00016438,2]
[351584269,1738647033716,-500.0,0.00016438,2]
[351584271,1738647033726,-354.79306501,0.00016438,2]
[351584273,1738647033737,-500.0,0.00016438,2]
[351584275,1738647033746,-514.39,0.00016438,2]
[351584277,1738647033756,-500.0,0.00016438,2]
[351584279,1738647033766,-500.0,0.00016438,2]
[351584281,1738647033776,-599.85859521,0.00016438,2]
[351584283,1738647033786,-500.0,0.00016438,2]
[351584285,1738647033796,-500.0,0.00016438,2]
[351584287,1738647033805,-500.0,0.00016438,2]
[351584289,1738647033816,-500.0,0.00016438,2]
[351584291,1738647033826,-500.0,0.00016438,2]
[351584293,1738647033836,-500.0,0.00016438,2]
[351584295,1738647033846,-500.0,0.00016438,2]
[351584297,1738647033855,-500.0,0.00016438,2]
[351584299,1738647033868,-417.43931012,0.00016438,2]
[351584302,1738647033886,-82.56068988,0.00016438,2]
[351584304,1738647033896,-520.14506571,0.00016438,2]
[351584306,1738647033906,-500.0,0.00016438,2]
[351584308,1738647033916,-500.0,0.00016438,2]
[351584310,1738647033926,-513.58686845,0.00016438,2]
[351584312,1738647033937,-500.0,0.00016438,2]
[351584314,1738647033947,-500.0,0.00016438,2]
[351584316,1738647033957,-500.0,0.00016438,2]
[351584318,1738647033967,-500.0,0.00016438,5]
[351584320,1738647033976,-500.0,0.00016438,2]
[351584322,1738647033986,-500.0,0.00016438,2]
[351584324,1738647033995,-500.0,0.00016438,2]
[351584326,1738647034004,-500.0,0.00016438,2]
[351584328,1738647034014,-345.55891214,0.00016438,2]
[351584330,1738647034024,-500.0,0.00016438,2]
[351584332,1738647034034,-500.0,0.00016438,2]
[351584334,1738647034044,-505.92911704,0.00016438,2]
[351584336,1738647034053,-1174.37,0.00016438,2]
[351584338,1738647034063,-506.42217585,0.00016438,2]
[351584340,1738647034072,-500.0,0.00016438,2]
[351584342,1738647034082,-500.0,0.00016438,2]
[351584344,1738647034092,-1104.52,0.00016438,2]
[351584346,1738647034101,-500.0,0.00016438,2]
[351584362,1738647034247,-500.0,0.00016438,2]
[351584364,1738647034257,-506.40964396,0.00016438,2]
[351584366,1738647034267,-504.71568762,0.00016438,2]
[351584368,1738647034277,-500.0,0.00016438,2]
[351584369,1738647034287,-500.0,0.00016438,2]
[351584371,1738647034297,-1035.14,0.00016438,2]
[351584373,1738647034307,-151.0,0.00016438,2]
[351584374,1738647034317,-500.0,0.00016438,2]
[351584376,1738647034327,-151.0,0.00016438,2]
[351584378,1738647034338,-151.0,0.00016438,2]
[351584380,1738647034347,-151.0,0.00016438,2]
[351584382,1738647034358,-172.22149,0.00016438,2]
[351584384,1738647034370,-1185.01,0.00016438,2]
[351584385,1738647034380,-500.0,0.00016438,2]
[351584387,1738647034390,-500.0,0.00016438,2]
[351584389,1738647034400,-500.0,0.00016438,2]
[351584391,1738647034410,-500.0,0.00016438,2]
[351584392,1738647034419,-504.44228573,0.00016438,2]
[351584393,1738647034431,-500.0,0.00016438,2]
[351584394,1738647034442,-113.47385406,0.00016438,2]
[351584395,1738647034458,-319.05526936,0.00016438,2]
[351584396,1738647034468,-178.19723064,0.00016438,2]
[351584413,1738647037962,-321.80276936,0.00016438,2]
[351584414,1738647037972,-500.0,0.00016438,2]
[351584415,1738647037982,-189.79145646,0.00016438,2]
[351584416,1738647037992,-38.40577419,0.00016438,2]
[351584417,1738647038032,-461.59422581,0.00016438,2]
[351584418,1738647038042,-500.0,0.00016438,2]
[351584419,1738647038052,-500.0,0.00016438,2]
[351584420,1738647038062,-503.92882149,0.00016438,2]
[351584421,1738647038072,-500.0,0.00016438,2]
[351584423,1738647038083,-503.32533486,0.00016438,2]
[351584425,1738647038093,-500.0,0.00016438,2]
[351584426,1738647038103,-500.0,0.00016438,2]
[351584427,1738647038115,-1775.71,0.00016438,2]
[351584429,1738647038125,-500.0,0.00016438,2]
[351584430,1738647038135,-1830.05,0.00016438,2]
[351584432,1738647038145,-1500.87,0.00016438,2]
[351584433,1738647038155,-500.0,0.00016438,2]
[351584435,1738647038165,-500.0,0.00016438,2]
[351584437,1738647038175,-500.0,0.00016438,2]
[351584438,1738647038184,-2928.5,0.00016438,2]
[351584440,1738647038194,-500.0,0.00016438,2]
[351584441,1738647038203,-500.0,0.00016438,2]
[351584443,1738647038212,-5439.82,0.00016438,2]
[351584445,1738647038222,-500.0,0.00016438,2]
[351584446,1738647038231,-1112.77,0.00016438,2]
[351584448,1738647038240,-599.95,0.00016438,2]
[351584450,1738647038250,-500.0,0.00016438,2]
[351584452,1738647038259,-788.9,0.00016438,2]
[351584454,1738647038268,-166.844691,0.00016438,2]
[351584455,1738647038277,-166.844691,0.00016438,2]
[351584456,1738647038286,-166.844691,0.00016438,2]
[351584457,1738647038296,-166.844691,0.00016438,2]
[351584458,1738647038304,-500.0,0.00016438,2]
[351584459,1738647038314,-166.844691,0.00016438,2]
[351584460,1738647038322,-166.844691,0.00016438,2]
[351584461,1738647038331,-166.844691,0.00016438,2]
[351584462,1738647038341,-166.844691,0.00016438,2]
[351584463,1738647038350,-500.0,0.00016438,2]
[351584464,1738647038361,-500.0,0.00016438,2]
[351584465,1738647038376,-500.0,0.00016438,2]
[351584466,1738647038385,-500.0,0.00016438,2]
[351584467,1738647038394,-500.0,0.00016438,2]
[351584468,1738647038403,-500.0,0.00016438,2]
[351584469,1738647038412,-344.28311331,0.00016438,2]
[351584470,1738647038422,-500.0,0.00016438,2]
[351584471,1738647038432,-500.0,0.00016438,2]
[351584472,1738647038441,-500.0,0.00016438,2]
[351584473,1738647038453,-500.0,0.00016438,2]
[351584474,1738647038462,-500.0,0.00016438,2]
[351584475,1738647038471,-500.0,0.00016438,2]
[351584476,1738647038480,-1339.05,0.00016438,2]
[351584477,1738647038490,-500.0,0.00016438,2]
[351584478,1738647038500,-500.0,0.00016438,2]
[351584479,1738647038509,-151.606844,0.00016438,2]
[351584480,1738647038517,-500.0,0.00016438,2]
[351584481,1738647038528,-500.0,0.00016438,2]
[351584482,1738647038537,-507.16305132,0.00016438,2]
[351584483,1738647038547,-3001.49,0.00016438,2]
[351584484,1738647038556,-2682.7,0.00016438,2]
[351584486,1738647038566,-500.0,0.00016438,2]
[351584487,1738647038574,-506.01555822,0.00016438,2]
[351584488,1738647038584,-500.0,0.00016438,2]
[351584490,1738647038594,-500.0,0.00016438,2]
[351584492,1738647038604,-151.0,0.00016438,2]
[351584494,1738647038617,-151.0,0.00016438,2]
[351584496,1738647038626,-151.0,0.00016438,2]
[351584498,1738647038635,-151.0,0.00016438,2]
[351584500,1738647038644,-500.0,0.00016438,2]
[351584502,1738647038654,-500.0,0.00016438,2]
[351584504,1738647038663,-500.0,0.00016438,2]
[351584506,1738647038672,-500.0,0.00016438,2]
[351584508,1738647038682,-500.0,0.00016438,2]
[351584510,1738647038692,-500.0,0.00016438,2]
[351584512,1738647038702,-500.0,0.00016438,2]
[351584514,1738647038711,-505.24216518,0.00016438,2]
[351584516,1738647038721,-500.0,0.00016438,2]
[351584517,1738647038730,-500.0,0.00016438,2]
[351584519,1738647038739,-500.0,0.00016438,2]
[351584522,1738647038749,-500.0,0.00016438,2]
[351584523,1738647038760,-500.0,0.00016438,2]
[351584526,1738647038769,-500.0,0.00016438,2]
[351584527,1738647038780,-500.0,0.00016438,2]
[351584529,1738647038789,-500.0,0.00016438,2]
[351584531,1738647038799,-366.44188433,0.00016438,2]
[351584533,1738647038809,-1061.76,0.00016438,2]
[351584535,1738647038819,-3752.45,0.00016438,2]
[351584538,1738647038828,-1702.25,0.00016438,2]
[351584540,1738647038838,-3593.92,0.00016438,2]
[351584541,1738647038848,-8623.37,0.00016438,2]
[351584543,1738647038858,-1372.12,0.00016438,2]
[351584545,1738647038872,-575.29929519,0.00016438,2]
[351584548,1738647038882,-500.0,0.00016438,2]
[351584550,1738647038893,-500.0,0.00016438,2]
[351584552,1738647038903,-500.0,0.00016438,2]
[351584554,1738647038912,-500.0,0.00016438,2]
[351584556,1738647038922,-500.0,0.00016438,2]
[351584558,1738647038931,-500.0,0.00016438,2]
[351584559,1738647038940,-500.0,0.00016438,2]
[351584561,1738647038949,-1023.17,0.00016438,2]
[351584563,1738647038960,-579.40779878,0.00016438,2]
[351584565,1738647038969,-198.52676848,0.00016438,2]
[351584567,1738647038979,-531.89969528,0.00016438,2]
[351584569,1738647038989,-559.15,0.00016438,2]
[351584571,1738647038998,-702.7,0.00016438,2]
[351584573,1738647039007,-500.0,0.00016438,2]
[351584575,1738647039017,-482.66037846,0.00016438,2]
[351584577,1738647039027,-500.0,0.00016438,2]
[351584579,1738647039036,-500.0,0.00016438,2]
[351584581,1738647039046,-500.0,0.00016438,2]
[351584583,1738647039056,-500.0,0.00016438,2]
[351584585,1738647039065,-151.0,0.00016438,2]
[351584587,1738647039075,-676.33,0.00016438,2]
[351584589,1738647039084,-151.0,0.00016438,2]
[351584591,1738647039094,-151.0,0.00016438,2]
[351584593,1738647039104,-151.0,0.00016438,2]
[351584595,1738647039117,-729.43,0.00016438,2]
[351584597,1738647039126,-500.0,0.00016438,2]
[351584599,1738647039135,-500.0,0.00016438,2]
[351584601,1738647039144,-1233.96,0.00016438,2]
[351584603,1738647039154,-11109.42753738,0.00016438,2]
[351584605,1738647039168,-9888.5,0.00016438,2]
[351584709,1738647040153,-4394.89246262,0.00016438,2]
[351584711,1738647040163,-504.1692633,0.00016438,2]
[351584713,1738647040173,-500.0,0.00016438,2]
[351584715,1738647040183,-151.0,0.00016438,2]
[351584717,1738647040192,-504.16742725,0.00016438,2]
[351584719,1738647040201,-151.0,0.00016438,2]
[351584721,1738647040211,-506.29611266,0.00016438,2]
[351584723,1738647040220,-427.22423417,0.00016438,2]
[351584725,1738647040232,-871.88576583,0.00016438,2]
[351584727,1738647040240,-320.05577472,0.00016438,2]
[351584955,1738647043096,-179.94422528,0.00016438,2]
[351584957,1738647043106,-1486.59,0.00016438,2]
[351584960,1738647043116,-1303.46577472,0.00016438,2]
[351585438,1738647382891,172.412825,0.00013699,2]
[351585441,1738647447437,234.192101,0.00013973,2]
[351585509,1738648232403,-234.60414598,0.00015944,2]
[351585510,1738648232413,-162.954761,0.00016372,2]
[351585511,1738648232422,-160.0,0.00016427,3]
[351585512,1738648232431,-388.62149102,0.00016437,2]
[351585513,1738648232442,-110.37850898,0.00016437,2]
[351585514,1738648232451,-300.0,0.00016437,2]
[351585515,1738648232461,-501.57565455,0.00016438,2]
[351585516,1738648232470,-151.0,0.00016438,2]
[351585518,1738648232479,-151.0,0.00016438,2]
[351585519,1738648232489,-192.420688,0.00016438,2]
[351585521,1738648232498,-442.85136452,0.00016438,2]
[351585522,1738648232507,-500.0,0.00016438,2]
[351585524,1738648232517,-115.8538314,0.00016438,2]
[351585525,1738648232551,-390.20570743,0.00016438,2]
[351585526,1738648232565,-505.12352178,0.00016438,2]
[351585527,1738648232575,-500.0,0.00016438,2]
[351585528,1738648232584,-500.0,0.00016438,2]
[351585529,1738648232594,-500.0,0.00016438,2]
[351585530,1738648232604,-502.97137501,0.00016438,2]
[351585531,1738648232614,-526.19414096,0.00016438,2]
[351585532,1738648232623,-509.80125937,0.00016438,2]
[351585533,1738648232633,-500.0,0.00016438,2]
[351585534,1738648232642,-500.0,0.00016438,2]
[351585535,1738648232652,-506.18267752,0.00016438,2]
[351585536,1738648232661,-500.0,0.00016438,2]
[351585537,1738648232670,-230.15198254,0.00016438,2]
[351585538,1738648232680,-500.0,0.00016438,2]
[351585539,1738648232689,-500.0,0.00016438,2]
[351585540,1738648232698,-517.58572474,0.00016438,2]
[351585541,1738648232708,-503.12473356,0.00016438,2]
[351585542,1738648232718,-504.66805009,0.00016438,2]
[351585543,1738648232728,-500.0,0.00016438,2]
[351585544,1738648232738,-500.0,0.00016438,2]
[351585545,1738648232747,-500.0,0.00016438,2]
[351585546,1738648232757,-500.0,0.00016438,2]
[351585547,1738648232766,-500.0,0.00016438,2]
[351585548,1738648232775,-151.0,0.00016438,2]
[351585549,1738648232784,-151.0,0.00016438,2]
[351585550,1738648232794,-500.0,0.00016438,2]
[351585551,1738648232806,-500.0,0.00016438,2]
[351585552,1738648232816,-500.0,0.00016438,2]
[351585553,1738648232825,-500.0,0.00016438,2]
[351585554,1738648232835,-513.5382037,0.00016438,2]
[351585555,1738648232844,-500.0,0.00016438,2]
[351585556,1738648232854,-500.0,0.00016438,2]
[351585557,1738648232868,-500.0,0.00016438,2]
[351585558,1738648232878,-500.0,0.00016438,2]
[351585559,1738648232888,-500.0,0.00016438,2]
[351585560,1738648232898,-500.0,0.00016438,2]
[351585561,1738648232909,-500.0,0.00016438,2]
[351585562,1738648232918,-500.0,0.00016438,2]
[351585563,1738648232927,-500.0,0.00016438,2]
[351585564,1738648232937,-198.05341126,0.00016438,2]
[351585565,1738648232947,-500.0,0.00016438,2]
[351585566,1738648232956,-500.0,0.00016438,5]
[351585567,1738648232966,-151.0,0.00016438,2]
[351585568,1738648232976,-151.0,0.00016438,2]
[351585569,1738648232985,-151.0,0.00016438,2]
[351585570,1738648232995,-500.0,0.00016438,2]
[351585571,1738648233005,-151.0,0.00016438,2]
[351585572,1738648233014,-151.0,0.00016438,2]
[351585573,1738648233041,-500.0,0.00016438,2]
[351585574,1738648233054,-500.0,0.00016438,2]
[351585575,1738648233064,-439.54019603,0.00016438,2]
[351585576,1738648233074,-500.0,0.00016438,2]
[351585577,1738648233084,-500.0,0.00016438,2]
[351585578,1738648233095,-500.0,0.00016438,2]
[351585579,1738648233104,-155.55697632,0.00016438,2]
[351585580,1738648233114,-500.0,0.00016438,2]
[351585581,1738648233124,-500.0,0.00016438,2]
[351585582,1738648233134,-500.0,0.00016438,2]
[351585583,1738648233144,-500.0,0.00016438,2]
[351585584,1738648233154,-500.0,0.00016438,2]
[351585585,1738648233163,-500.0,0.00016438,2]
[351585586,1738648233172,-504.90778027,0.00016438,2]
[351585587,1738648233183,-615.27213976,0.00016438,2]
[351585588,1738648233192,-500.0,0.00016438,2]
[351585589,1738648233202,-503.32410115,0.00016438,2]
[351585590,1738648233211,-500.0,0.00016438,2]
[351585591,1738648233222,-500.0,0.00016438,2]
[351585592,1738648233233,-500.0,0.00016438,2]
[351585593,1738648233243,-501.03333537,0.00016438,2]
[351585594,1738648233253,-504.06391903,0.00016438,2]
[351585595,1738648233262,-500.0,0.00016438,2]
[351585596,1738648233272,-500.0,0.00016438,2]
[351585597,1738648233281,-508.96761364,0.00016438,2]
[351585598,1738648233291,-504.55137725,0.00016438,2]
[351585599,1738648233304,-500.0,0.00016438,2]
[351585600,1738648233314,-500.0,0.00016438,2]
[351585601,1738648233324,-500.0,0.00016438,2]
[351585602,1738648233334,-500.0,0.00016438,2]
[351585603,1738648233344,-500.0,0.00016438,2]
[351585604,1738648233354,-500.0,0.00016438,2]
[351585605,1738648233364,-502.52373775,0.00016438,2]
[351585606,1738648233374,-500.0,0.00016438,2]
[351585607,1738648233383,-500.0,0.00016438,2]
[351585608,1738648233393,-500.0,0.00016438,2]
[351585609,1738648233402,-500.0,0.00016438,2]
[351585610,1738648233411,-500.0,0.00016438,2]
[351585611,1738648233421,-505.37883034,0.00016438,2]
[351585612,1738648233431,-500.0,0.00016438,2]
[351585613,1738648233441,-500.0,0.00016438,2]
[351585614,1738648233451,-500.0,0.00016438,2]
[351585615,1738648233461,-500.0,0.00016438,2]
[351585616,1738648233471,-500.0,0.00016438,2]
[351585617,1738648233481,-500.0,0.00016438,2]
[351585618,1738648233490,-518.59192647,0.00016438,2]
[351585619,1738648233500,-574.29,0.00016438,2]
[351585620,1738648233510,-500.0,0.00016438,2]
[351585621,1738648233521,-503.13862755,0.00016438,2]
[351585622,1738648233532,-500.0,0.00016438,2]
[351585623,1738648233542,-500.0,0.00016438,2]
[351585624,1738648233557,-392.40767004,0.00016438,2]
[351585625,1738648233573,-107.59232996,0.00016438,2]
[351585626,1738648233583,-500.0,0.00016438,2]
[351585627,1738648233592,-500.0,0.00016438,2]
[351585628,1738648233603,-500.0,0.00016438,2]
[351585629,1738648233613,-500.0,0.00016438,2]
[351585630,1738648233623,-500.0,0.00016438,2]
[351585631,1738648233633,-500.0,0.00016438,2]
[351585632,1738648233643,-151.0,0.00016438,2]
[351585633,1738648233652,-502.26034101,0.00016438,2]
[351585634,1738648233662,-296.02020905,0.00016438,2]
[351585635,1738648233672,-500.0,0.00016438,2]
[351585636,1738648233682,-388.83421086,0.00016438,2]
[351585669,1738648238163,-111.16578914,0.00016438,2]
[351585671,1738648238173,-500.0,0.00016438,2]
[351585673,1738648238182,-501.89292105,0.00016438,2]
[351585675,1738648238192,-500.0,0.00016438,2]
[351585677,1738648238201,-500.0,0.00016438,2]
[351585679,1738648238211,-500.0,0.00016438,2]
[351585680,1738648238220,-500.0,0.00016438,2]
[351585681,1738648238229,-500.0,0.00016438,2]
[351585682,1738648238239,-500.0,0.00016438,2]
[351585683,1738648238248,-500.0,0.00016438,2]
[351585684,1738648238257,-500.0,0.00016438,2]
[351585685,1738648238267,-500.0,0.00016438,2]
[351585686,1738648238276,-500.0,0.00016438,2]
[351585687,1738648238285,-500.0,0.00016438,2]
[351585688,1738648238295,-500.0,0.00016438,2]
[351585689,1738648238305,-513.79,0.00016438,2]
[351585690,1738648238315,-895.07,0.00016438,2]
[351585691,1738648238325,-500.0,0.00016438,2]
[351585692,1738648238334,-500.0,0.00016438,2]
[351585693,1738648238343,-500.0,0.00016438,2]
[351585694,1738648238352,-500.0,0.00016438,2]
[351585695,1738648238361,-500.0,0.00016438,2]
[351585696,1738648238370,-548.92136003,0.00016438,2]
[351585697,1738648238379,-500.0,0.00016438,2]
[351585699,1738648238389,-500.0,0.00016438,2]
[351585700,1738648238398,-500.0,0.00016438,2]
[351585701,1738648238407,-500.0,0.00016438,2]
[351585703,1738648238416,-500.0,0.00016438,2]
[351585705,1738648238426,-500.0,0.00016438,2]
[351585707,1738648238435,-500.0,0.00016438,2]
[351585709,1738648238444,-505.41445445,0.00016438,2]
[351585711,1738648238454,-500.0,0.00016438,2]
[351585713,1738648238463,-500.0,0.00016438,2]
[351585715,1738648238472,-500.0,0.00016438,2]
[351585716,1738648238482,-500.0,0.00016438,2]
[351585719,1738648238491,-500.0,0.00016438,2]
[351585721,1738648238500,-500.0,0.00016438,2]
[351585723,1738648238510,-502.04145785,0.00016438,2]
[351585725,1738648238519,-1146.27,0.00016438,2]
[351585727,1738648238528,-503.5189988,0.00016438,2]
[351585742,1738648238660,-645.09024336,0.00016438,2]
[351585744,1738648238671,-500.0,0.00016438,2]
[351585746,1738648238681,-596.56854819,0.00016438,2]
[351585748,1738648238690,-1079.33,0.00016438,2]
[351585750,1738648238699,-500.0,0.00016438,2]
[351585752,1738648238708,-500.0,0.00016438,2]
[351585754,1738648238718,-500.0,0.00016438,2]
[351585756,1738648238727,-500.0,0.00016438,2]
[351585758,1738648238736,-503.94921382,0.00016438,2]
[351585760,1738648238746,-500.0,0.00016438,2]
[351585762,1738648238755,-500.36920703,0.00016438,2]
[351585764,1738648238764,-514.03287859,0.00016438,2]
[351585766,1738648238773,-500.0,0.00016438,2]
[351585768,1738648238782,-500.0,0.00016438,2]
[351585770,1738648238791,-500.0,0.00016438,2]
[351585772,1738648238801,-500.0,0.00016438,2]
[351585774,1738648238815,-500.0,0.00016438,2]
[351585776,1738648238824,-500.0,0.00016438,2]
[351585778,1738648238833,-1012.84,0.00016438,2]
[351585780,1738648238842,-500.0,0.00016438,2]
[351585782,1738648238855,-500.0,0.00016438,2]
[351585784,1738648238864,-503.96357399,0.00016438,2]
[351585786,1738648238873,-500.0,0.00016438,2]
[351585788,1738648238883,-500.0,0.00016438,2]
[351585790,1738648238893,-500.0,0.00016438,2]
[351585792,1738648238902,-500.0,0.00016438,2]
[351585794,1738648238912,-546.34,0.00016438,2]
[351585796,1738648238922,-500.0,0.00016438,2]
[351585798,1738648238931,-500.0,0.00016438,2]
[351585800,1738648238942,-500.0,0.00016438,2]
[351585802,1738648238952,-500.0,0.00016438,2]
[351585804,1738648238962,-500.0,0.00016438,2]
[351585806,1738648238971,-500.0,0.00016438,2]
[351585809,1738648238981,-500.0,0.00016438,2]
[351585810,1738648238990,-595.78,0.00016438,2]
[351585813,1738648239000,-756.03,0.00016438,2]
[351585814,1738648239009,-500.0,0.00016438,2]
[351585817,1738648239019,-500.0,0.00016438,2]
[351585819,1738648239028,-500.0,0.00016438,2]
[351585821,1738648239038,-1722.56,0.00016438,2]
[351585822,1738648239048,-500.0,0.00016438,2]
[351585825,1738648239062,-500.0,0.00016438,2]
[351585827,1738648239071,-546.10765131,0.00016438,2]
[351585829,1738648239081,-500.0,0.00016438,2]
[351585831,1738648239090,-500.0,0.00016438,2]
[351585833,1738648239099,-500.0,0.00016438,2]
[351585834,1738648239109,-1087.24,0.00016438,2]
[351585836,1738648239118,-597.45110743,0.00016438,2]
[351585838,1738648239128,-1774.63,0.00016438,2]
[351585840,1738648239137,-500.0,0.00016438,2]
[351585843,1738648239146,-2897.26,0.00016438,2]
[351585845,1738648239156,-500.0,0.00016438,2]
[351585846,1738648239165,-1459.17,0.00016438,2]
[351585848,1738648239175,-3444.17,0.00016438,2]
[351585850,1738648239185,-500.0,0.00016438,2]
[351585853,1738648239195,-500.0,0.00016438,2]
[351585855,1738648239204,-500.0,0.00016438,2]
[351585857,1738648239214,-500.0,0.00016438,2]
[351585858,1738648239223,-500.0,0.00016438,2]
[351585861,1738648239233,-500.0,0.00016438,2]
[351585862,1738648239242,-2827.32,0.00016438,2]
[351585865,1738648239251,-283.77095402,0.00016438,2]
[351585866,1738648239261,-500.0,0.00016438,2]
[351585869,1738648239271,-503.79225995,0.00016438,2]
[351585870,1738648239281,-500.0,0.00016438,2]
[351585873,1738648239291,-500.0,0.00016438,2]
[351585874,1738648239300,-500.0,0.00016438,2]
[351585876,1738648239314,-500.0,0.00016438,2]
[351585878,1738648239324,-506.31936324,0.00016438,2]
[351585880,1738648239334,-5251.63,0.00016438,2]
[351585882,1738648239344,-500.0,0.00016438,2]
[351585885,1738648239354,-151.0,0.00016438,2]
[351585887,1738648239364,-151.0,0.00016438,2]
[351585889,1738648239374,-500.0,0.00016438,2]
[351585891,1738648239383,-3816.58,0.00016438,2]
[351585893,1738648239392,-500.0,0.00016438,2]
[351585895,1738648239401,-500.0,0.00016438,2]
[351585897,1738648239411,-1001.37,0.00016438,2]
[351585899,1738648239420,-502.97029981,0.00016438,2]
[351585901,1738648239429,-500.0,0.00016438,2]
[351585903,1738648239439,-500.0,0.00016438,2]
[351585905,1738648239448,-593.24,0.00016438,2]
[351585907,1738648239457,-593.24,0.00016438,2]
[351585909,1738648239467,-500.0,0.00016438,2]
[351585911,1738648239476,-151.0,0.00016438,2]
[351585913,1738648239486,-1038.36,0.00016438,2]
[351585915,1738648239495,-151.0,0.00016438,2]
[351585916,1738648239505,-151.0,0.00016438,2]
[351585918,1738648239514,-151.0,0.00016438,2]
[351585921,1738648239524,-277.28581409,0.00016438,2]
[351585923,1738648239533,-593.24,0.00016438,2]
[351585925,1738648239542,-593.24,0.00016438,2]
[351585927,1738648239551,-593.24,0.00016438,2]
[351585928,1738648239566,-593.24,0.00016438,2]
[351585930,1738648239575,-593.24,0.00016438,2]
[351585933,1738648239585,-719.87,0.00016438,2]
[351585935,1738648239595,-593.24,0.00016438,2]
[351585937,1738648239604,-593.24,0.00016438,2]
[351585938,1738648239613,-593.24,0.00016438,2]
[351585940,1738648239623,-593.24,0.00016438,2]
[351585943,1738648239632,-257.22817801,0.00016438,2]
[351585944,1738648239642,-500.0,0.00016438,2]
[351585946,1738648239651,-500.0,0.00016438,2]
[351585948,1738648239661,-500.0,0.00016438,2]
[351585950,1738648239671,-556.69,0.00016438,2]
[351585952,1738648239681,-8331.33,0.00016438,2]
[351585955,1738648239690,-1329.61,0.00016438,2]
[351585959,1738648239700,-24645.54,0.00016438,2]
[351585960,1738648239710,-500.0,0.00016438,2]
[351585963,1738648239720,-500.0,0.00016438,2]
[351585964,1738648239729,-500.0,0.00016438,2]
[351585967,1738648239738,-500.0,0.00016438,2]
[351585968,1738648239748,-2652.07,0.00016438,2]
[351585970,1738648239757,-500.0,0.00016438,2]
[351585972,1738648239767,-272.83539359,0.00016438,2]
[351585975,1738648239782,-227.16460641,0.00016438,2]
[351585977,1738648239791,-500.0,0.00016438,2]
[351585979,1738648239801,-500.0,0.00016438,2]
[351585981,1738648239814,-500.0,0.00016438,2]
[351585983,1738648239823,-36.19971135,0.00016438,2]